fUST/lending_fUST_20240205
["ID","MTS","AMOUNT","RATE_DAILY","PERIOD"]
[313289270,1707093041798,-500.0,0.00025479,2]
[313289271,1707093041809,-4546.37,0.00025479,2]
[313289272,1707093041822,-708.9,0.00025479,2]
[313289273,1707093041832,-806.2,0.00025479,2]
[313289274,1707093041843,-930.16,0.00025479,2]
[313289275,1707093041853,-643.46,0.00025479,2]
[313289276,1707093041864,-1279.24,0.00025479,2]
[313289277,1707093041875,-4095.99,0.00025479,2]
[313289278,1707093041885,-626.11,0.00025479,2]
[313289279,1707093041896,-500.0,0.00025479,2]
[313289280,1707093041907,-6776.27,0.00025479,2]
[313289281,1707093041918,-817.65,0.00025479,2]
[313289282,1707093041928,-265.70852641,0.000255,2]
[313289283,1707093041939,-151.0,0.00025642,2]
[313289284,1707093041949,-500.0,0.000257,2]
[313289285,1707093041960,-171.682484,0.000257,2]
[313289286,1707093041971,-2620.26412032,0.00025737,2]
[313289287,1707093041981,-2620.26412032,0.00025737,2]
[313289288,1707093041992,-2620.26412032,0.00025737,2]
[313289289,1707093042003,-2620.26412032,0.00025737,2]
[313289290,1707093042013,-2620.26412032,0.00025737,2]
[313289291,1707093042023,-2620.26412032,0.00025737,2]
[313289292,1707093042034,-2620.26412032,0.00025737,2]
[313289293,1707093042044,-2620.26412032,0.00025737,2]
[313289294,1707093042055,-2620.26412032,0.00025737,2]
[313289295,1707093042065,-2620.26412032,0.00025737,2]
[313289296,1707093042076,-1583.172084,0.00025744,2]
[313289297,1707093042087,-323.57048434,0.00025745,2]
[313289298,1707093042098,-309.98450155,0.00025745,2]
[313289299,1707093042108,-167.32375546,0.0002575,2]
[313289300,1707093042118,-4695.30394613,0.0002575,2]
[313289301,1707093042129,-155.06542336,0.0002575,2]
[313289302,1707093042139,-500.0,0.00025753,2]
[313289303,1707093042150,-500.0,0.00025753,2]
[313289304,1707093042160,-1522.0,0.00025753,2]
[313289305,1707093042171,-500.0,0.00025753,2]
[313289306,1707093042182,-500.0,0.00025753,2]
[313289307,1707093042192,-662.26,0.00025753,2]
[313289308,1707093042203,-500.0,0.00025753,2]
[313289309,1707093042213,-500.0,0.00025753,2]
[313289310,1707093042226,-500.0,0.00025753,2]
[313289311,1707093042237,-500.0,0.00025753,2]
[313289312,1707093042247,-903.35,0.00025753,2]
[313289313,1707093042257,-3726.36,0.00025753,2]
[313289314,1707093042267,-500.0,0.00025753,2]
[313289315,1707093042279,-500.0,0.00025753,2]
[313289316,1707093042290,-6884.29,0.00025753,2]
[313289317,1707093042395,-1743.79,0.00025753,2]
[313289318,1707093042411,-500.0,0.00025753,2]
[313289319,1707093042421,-1592.01,0.00025753,2]
[313289320,1707093042430,-500.0,0.00025753,2]
[313289321,1707093042439,-1059.98,0.00025753,2]
[313289322,1707093042449,-1405.14,0.00025753,2]
[313289323,1707093042458,-604.29,0.00025753,2]
[313289324,1707093042468,-1843.97,0.00025753,2]
[313289325,1707093042479,-803.77,0.00025753,2]
[313289326,1707093042487,-500.0,0.00025753,2]
[313289327,1707093042496,-1957.71,0.00025753,2]
[313289328,1707093042507,-500.0,0.00025753,2]
[313289329,1707093042515,-4546.37,0.00025753,2]
[313289330,1707093042524,-708.9,0.00025753,2]
[313289331,1707093042534,-806.2,0.00025753,2]
[313289332,1707093042542,-930.16,0.00025753,2]
[313289333,1707093042551,-643.46,0.00025753,2]
[313289334,1707093042560,-1279.24,0.00025753,2]
[313289335,1707093042569,-4095.99,0.00025753,2]
[313289336,1707093042578,-626.11,0.00025753,2]
[313289337,1707093042588,-500.0,0.00025753,2]
[313289338,1707093042597,-6776.27,0.00025753,2]
[313289339,1707093042605,-817.65,0.00025753,2]
[313289340,1707093042614,-622.91667184,0.00025795,2]
[313289341,1707093042623,-155.05116273,0.00025839,2]
[313289342,1707093042632,-161.10115107,0.00025898,2]
[313289343,1707093042641,-228.12834369,0.00025899,2]
[313289344,1707093042651,-260.68664381,0.00025899,2]
[313289345,1707093042660,-300.0,0.000259,12]
[313289346,1707093042669,-157.23235059,0.00025983,2]
[313289347,1707093042678,-7971.79381667,0.00025995,2]
[313289348,1707093042687,-1000.0,0.00026,26]
[313289349,1707093042696,-200.0,0.00026,2]
[313289350,1707093042706,-309.9395475,0.00026011,2]
[313289351,1707093042715,-500.0,0.00026023,2]
[313289352,1707093042725,-516.1197815,0.00026023,2]
[313289353,1707093042734,-500.0,0.00026023,2]
[313289354,1707093042743,-500.0,0.00026023,2]
[313289355,1707093042753,-500.0,0.00026023,2]
[313289356,1707093042762,-500.0,0.00026023,2]
[313289357,1707093042772,-500.0,0.00026023,2]
[313289358,1707093042781,-394.94558752,0.00026023,2]
[313289359,1707093042790,-500.0,0.00026023,2]
[313289360,1707093042799,-312.4400229,0.00026023,2]
[313289361,1707093042808,-600.0,0.00026023,2]
[313289362,1707093042817,-500.0,0.00026023,2]
[313289363,1707093042826,-500.0,0.00026023,2]
[313289364,1707093042835,-500.0,0.00026023,2]
[313289365,1707093042844,-500.0,0.00026023,2]
[313289366,1707093042853,-500.0,0.00026023,2]
[313289367,1707093042862,-500.0,0.00026023,2]
[313289368,1707093042871,-500.0,0.00026023,2]
[313289369,1707093042881,-159.1509975,0.00026023,2]
[313289370,1707093042890,-500.0,0.00026023,2]
[313289371,1707093042899,-500.0,0.00026023,2]
[313289372,1707093042908,-532.63865688,0.00026023,2]
[313289373,1707093042917,-500.0,0.00026023,2]
[313289374,1707093042926,-500.0,0.00026023,2]
[313289375,1707093042935,-500.0,0.00026023,2]
[313289376,1707093042944,-500.0,0.00026023,2]
[313289377,1707093042953,-500.0,0.00026023,2]
[313289378,1707093042962,-500.0,0.00026023,2]
[313289379,1707093042972,-500.0,0.00026023,2]
[313289380,1707093042981,-457.3502159,0.00026027,2]
[313289381,1707093042990,-500.0,0.00026027,2]
[313289382,1707093042999,-1522.0,0.00026027,2]
[313289383,1707093043009,-500.0,0.00026027,2]
[313289384,1707093043018,-500.0,0.00026027,2]
[313289385,1707093043027,-662.26,0.00026027,2]
[313289386,1707093043036,-500.0,0.00026027,2]
[313289387,1707093043045,-313.03056003,0.00026027,2]
[313289388,1707093043055,-165.55794267,0.00026027,2]
[313289389,1707093043064,-294.56951258,0.00026027,2]
[313289390,1707093043073,-903.35,0.00026027,2]
[313289391,1707093043082,-3726.36,0.00026027,2]
[313289393,1707093043090,-500.0,0.00026027,2]
[313289395,1707093043099,-500.0,0.00026027,2]
[313289396,1707093043108,-6884.29,0.00026027,2]
[313289398,1707093043117,-1743.79,0.00026027,2]
[313289400,1707093043126,-500.0,0.00026027,2]
[313289401,1707093043134,-1592.01,0.00026027,2]
[313289402,1707093043144,-500.0,0.00026027,2]
[313289403,1707093043153,-1059.98,0.00026027,2]
[313289404,1707093043163,-1405.14,0.00026027,2]
[313289405,1707093043172,-604.29,0.00026027,2]
[313289406,1707093043182,-1843.97,0.00026027,2]
[313289407,1707093043191,-803.77,0.00026027,2]
[313289408,1707093043200,-500.0,0.00026027,2]
[313289409,1707093043208,-1957.71,0.00026027,2]
[313289410,1707093043218,-500.0,0.00026027,2]
[313289411,1707093043227,-4546.37,0.00026027,2]
[313289412,1707093043236,-708.9,0.00026027,2]
[313289413,1707093043245,-806.2,0.00026027,2]
[313289414,1707093043255,-930.16,0.00026027,2]
[313289415,1707093043264,-643.46,0.00026027,2]
[313289416,1707093043272,-1279.24,0.00026027,2]
[313289417,1707093043281,-4095.99,0.00026027,2]
[313289418,1707093043290,-626.11,0.00026027,2]
[313289419,1707093043299,-500.0,0.00026027,2]
[313289421,1707093043309,-6776.27,0.00026027,2]
[313289422,1707093043319,-817.65,0.00026027,2]
[313289423,1707093043330,-306.0,0.00026027,2]
[313289424,1707093043339,-155.3621606,0.00026027,2]
[313289425,1707093043348,-399.3983604,0.00026027,2]
[313289426,1707093043357,-306.0,0.00026027,2]
[313289427,1707093043366,-500.0,0.00026301,2]
[313289428,1707093043375,-1522.0,0.00026301,2]
[313289429,1707093043384,-500.0,0.00026301,2]
[313289430,1707093043393,-500.0,0.00026301,2]
[313289431,1707093043403,-662.26,0.00026301,2]
[313289432,1707093043412,-500.0,0.00026301,2]
[313289433,1707093043421,-903.35,0.00026301,2]
[313289434,1707093043430,-3726.36,0.00026301,2]
[313289435,1707093043440,-500.0,0.00026301,2]
[313289436,1707093043449,-500.0,0.00026301,2]
[313289437,1707093043459,-6884.29,0.00026301,2]
[313289438,1707093043468,-1743.79,0.00026301,2]
[313289440,1707093043478,-500.0,0.00026301,2]
[313289442,1707093043488,-1592.01,0.00026301,2]
[313289444,1707093043497,-500.0,0.00026301,2]
[313289445,1707093043507,-1059.98,0.00026301,2]
[313289446,1707093043517,-1405.14,0.00026301,2]
[313289447,1707093043527,-604.29,0.00026301,2]
[313289448,1707093043536,-1843.97,0.00026301,2]
[313289449,1707093043545,-803.77,0.00026301,2]
[313289450,1707093043554,-500.0,0.00026301,2]
[313289451,1707093043563,-1957.71,0.00026301,2]
[313289452,1707093043573,-500.0,0.00026301,2]
[313289453,1707093043582,-4546.37,0.00026301,2]
[313289454,1707093043590,-708.9,0.00026301,2]
[313289455,1707093043599,-806.2,0.00026301,2]
[313289456,1707093043608,-930.16,0.00026301,2]
[313289457,1707093043617,-643.46,0.00026301,2]
[313289458,1707093043627,-1279.24,0.00026301,2]
[313289459,1707093043636,-4095.99,0.00026301,2]
[313289460,1707093043646,-626.11,0.00026301,2]
[313289461,1707093043655,-500.0,0.00026301,2]
[313289462,1707093043664,-6776.27,0.00026301,2]
[313289463,1707093043673,-817.65,0.00026301,2]
[313289464,1707093043683,-280.0,0.0002634,15]
[313289465,1707093043692,-2117.32402496,0.00026372,2]
[313289466,1707093043701,-500.0,0.00026575,2]
[313289467,1707093043710,-1522.0,0.00026575,2]
[313289468,1707093043720,-500.0,0.00026575,2]
[313289469,1707093043729,-500.0,0.00026575,2]
[313289470,1707093043738,-662.26,0.00026575,2]
[313289471,1707093043747,-500.0,0.00026575,2]
[313289472,1707093043756,-903.35,0.00026575,2]
[313289473,1707093043766,-3726.36,0.00026575,2]
[313289474,1707093043775,-500.0,0.00026575,2]
[313289475,1707093043785,-500.0,0.00026575,2]
[313289476,1707093043794,-6884.29,0.00026575,2]
[313289477,1707093043803,-1743.79,0.00026575,2]
[313289478,1707093043813,-500.0,0.00026575,2]
[313289479,1707093043822,-1592.01,0.00026575,2]
[313289480,1707093043831,-500.0,0.00026575,2]
[313289481,1707093043840,-1059.98,0.00026575,2]
[313289482,1707093043850,-1405.14,0.00026575,2]
[313289483,1707093043860,-604.29,0.00026575,2]
[313289484,1707093043869,-1843.97,0.00026575,2]
[313289485,1707093043878,-803.77,0.00026575,2]
[313289486,1707093043887,-500.0,0.00026575,2]
[313289487,1707093043896,-1957.71,0.00026575,2]
[313289488,1707093043906,-500.0,0.00026575,2]
[313289489,1707093043915,-4546.37,0.00026575,2]
[313289490,1707093043925,-708.9,0.00026575,2]
[313289491,1707093043934,-806.2,0.00026575,2]
[313289492,1707093043942,-930.16,0.00026575,2]
[313289493,1707093043951,-643.46,0.00026575,2]
[313289494,1707093043961,-1279.24,0.00026575,2]
[313289495,1707093043970,-4095.99,0.00026575,2]
[313289496,1707093043979,-626.11,0.00026575,2]
[313289497,1707093043988,-649.93966104,0.00026575,2]
[313289498,1707093043997,-6776.27,0.00026575,2]
[313289499,1707093044006,-817.65,0.00026575,2]
[313289500,1707093044015,-500.0,0.000267,2]
[313289501,1707093044025,-1000.0,0.00026799,2]
[313289502,1707093044034,-1000.0,0.00026799,5]
[313289503,1707093044043,-391629.47375904,0.000268,2]
[313289504,1707093044290,-1200.96451979,0.00021881,2]
[313289505,1707093044300,-251.73247497,0.00026023,2]
[313289506,1707093044309,-550.52080977,0.00026023,2]
[313289507,1707093044320,-401.549583,0.00026027,2]
[313289508,1707093044329,-153.0,0.00026027,2]
[313289509,1707093044338,-75404.34362608,0.000268,2]
[313289696,1707094240966,-3000.0,0.00022,2]
[313289697,1707094240975,-153.50068831,0.00022994,2]
[313289698,1707094240985,-23737.7660869,0.00023094,2]
[313289699,1707094240994,-859.53967679,0.00023094,2]
[313289700,1707094241003,-1017.08640501,0.00023094,2]
[313289701,1707094241012,-533.40291073,0.00023094,2]
[313289702,1707094241021,-244.197801,0.00023553,2]
[313289703,1707094241030,-200.0,0.00024248,7]
[313289704,1707094241040,-228.31510903,0.00024557,2]
[313289705,1707094241049,-2471.12,0.00024647,3]
[313289706,1707094241058,-2059.27,0.00024647,3]
[313289707,1707094241067,-200.55537131,0.00024655,2]
[313289708,1707094241076,-257.05415938,0.00024656,2]
[313289709,1707094241086,-500.0,0.00024657,2]
[313289710,1707094241095,-309.87767732,0.00024657,2]
[313289711,1707094241104,-500.0,0.00024657,2]
[313289712,1707094241113,-500.0,0.00024657,2]
[313289713,1707094241122,-500.0,0.00024657,2]
[313289714,1707094241131,-500.0,0.00024657,2]
[313289715,1707094241140,-500.0,0.00024657,2]
[313289716,1707094241149,-232.99081434,0.00024657,2]
[313289717,1707094241158,-500.0,0.00024657,2]
[313289718,1707094241167,-500.0,0.00024657,2]
[313289719,1707094241177,-504.0,0.00024657,2]
[313289720,1707094241186,-470.80891718,0.00024657,2]
[313289721,1707094241196,-21.42686973,0.00024657,2]
[313289722,1707094241207,-478.57313027,0.00024657,2]
[313289723,1707094241216,-500.0,0.00024657,2]
[313289724,1707094241225,-500.0,0.00024657,2]
[313289725,1707094241233,-4875.27,0.00024657,2]
[313289726,1707094241242,-1244.39,0.00024657,2]
[313289727,1707094241251,-500.0,0.00024657,2]
[313289728,1707094241260,-500.0,0.00024657,2]
[313289729,1707094241269,-1120.38,0.00024657,2]
[313289730,1707094241278,-500.0,0.00024657,2]
[313289731,1707094241287,-989.52,0.00024657,2]
[313289732,1707094241296,-748.32,0.00024657,2]
[313289733,1707094241305,-500.0,0.00024657,2]
[313289734,1707094241313,-500.0,0.00024657,2]
[313289735,1707094241322,-500.0,0.00024657,2]
[313289736,1707094241331,-1340.36,0.00024657,2]
[313289737,1707094241340,-1430.82,0.00024657,2]
[313289738,1707094241349,-577.52,0.00024657,2]
[313289739,1707094241359,-500.0,0.00024657,2]
[313289740,1707094241367,-535.1,0.00024657,2]
[313289741,1707094241376,-3297.15,0.00024657,2]
[313289742,1707094241385,-682.61,0.00024657,2]
[313289743,1707094241394,-500.0,0.00024657,2]
[313289744,1707094241402,-599.96,0.00024657,2]
[313289745,1707094241412,-500.0,0.00024657,2]
[313289746,1707094241421,-2990.31,0.00024657,2]
[313289747,1707094241430,-341.5312248,0.00024657,2]
[313289748,1707094241439,-500.0,0.00024657,2]
[313289749,1707094241448,-500.0,0.00024657,2]
[313289750,1707094241458,-937.9,0.00024657,2]
[313289751,1707094241466,-500.0,0.00024657,2]
[313289752,1707094241475,-4928.6,0.00024657,2]
[313289753,1707094241485,-644.45,0.00024657,2]
[313289754,1707094241494,-500.0,0.00024657,2]
[313289755,1707094241502,-500.0,0.00024657,2]
[313289756,1707094241511,-2634.34,0.00024657,2]
[313289757,1707094241520,-1114.56,0.00024657,2]
[313289758,1707094241528,-607.6,0.00024657,2]
[313289759,1707094241538,-1130.29063686,0.000247,2]
[313289760,1707094241547,-500.0,0.00024931,2]
[313289761,1707094241556,-510.78,0.00024931,2]
[313289762,1707094241564,-518.62,0.00024931,2]
[313289763,1707094241573,-500.0,0.00024931,2]
[313289764,1707094241582,-500.0,0.00024931,2]
[313289765,1707094241591,-500.0,0.00024931,2]
[313289766,1707094241600,-500.0,0.00024931,2]
[313289767,1707094241609,-504.0,0.00024931,2]
[313289768,1707094241618,-500.0,0.00024931,2]
[313289769,1707094241627,-500.0,0.00024931,2]
[313289770,1707094241636,-500.0,0.00024931,2]
[313289771,1707094241645,-4875.27,0.00024931,2]
[313289772,1707094241653,-1244.39,0.00024931,2]
[313289773,1707094241663,-500.0,0.00024931,2]
[313289774,1707094241672,-1120.38,0.00024931,2]
[313289775,1707094241684,-500.0,0.00024931,2]
[313289776,1707094241695,-989.52,0.00024931,2]
[313289777,1707094241704,-748.32,0.00024931,2]
[313289778,1707094241713,-500.0,0.00024931,2]
[313289779,1707094241722,-1340.36,0.00024931,2]
[313289780,1707094241732,-1430.82,0.00024931,2]
[313289781,1707094241741,-577.52,0.00024931,2]
[313289782,1707094241750,-535.1,0.00024931,2]
[313289783,1707094241760,-3297.15,0.00024931,2]
[313289784,1707094241769,-682.61,0.00024931,2]
[313289785,1707094241777,-599.96,0.00024931,2]
[313289786,1707094241786,-500.0,0.00024931,2]
[313289787,1707094241795,-2990.31,0.00024931,2]
[313289788,1707094241804,-500.0,0.00024931,2]
[313289789,1707094241813,-937.9,0.00024931,2]
[313289790,1707094241822,-500.0,0.00024931,2]
[313289791,1707094241831,-4928.6,0.00024931,2]
[313289792,1707094241841,-644.45,0.00024931,2]
[313289793,1707094241850,-500.0,0.00024931,2]
[313289794,1707094241859,-2634.34,0.00024931,2]
[313289795,1707094241868,-1114.56,0.00024931,2]
[313289796,1707094241877,-607.6,0.00024931,2]
[313289797,1707094241886,-500.0,0.00025205,2]
[313289798,1707094241895,-101.11878117,0.00025205,2]
[313289845,1707095375111,5000.0,0.00029,30]
[313289948,1707095437948,-200.55537131,0.00022806,2]
[313289950,1707095437957,-159.09368854,0.00022807,2]
[313289957,1707095438008,-136.46930617,0.00022807,2]
[313289959,1707095438017,-1421.07768655,0.00022831,2]
[313289961,1707095438026,-20392.17542856,0.00023101,2]
[313289963,1707095438035,-4110.04611846,0.00023103,2]
[313289965,1707095438044,-1441.1599056,0.00023104,2]
[313289967,1707095438056,-200.0,0.00024255,7]
[313289969,1707095438065,-1764.11,0.00024647,3]
[313289971,1707095438074,-1470.09,0.00024647,3]
[313289973,1707095438083,-225.77723935,0.00024656,2]
[313289975,1707095438094,-503.33303702,0.00024657,2]
[313289978,1707095438103,-500.0,0.00024657,2]
[313289981,1707095438113,-500.0,0.00024657,2]
[313289984,1707095438122,-500.0,0.00024657,2]
[313289987,1707095438131,-500.0,0.00024657,2]
[313289990,1707095438141,-500.0,0.00024657,2]
[313289992,1707095438149,-500.0,0.00024657,2]
[313289995,1707095438158,-500.0,0.00024657,2]
[313289997,1707095438167,-500.0,0.00024657,2]
[313289999,1707095438180,-500.0,0.00024657,2]
[313290001,1707095438188,-500.0,0.00024657,2]
[313290003,1707095438197,-500.0,0.00024657,2]
[313290004,1707095438206,-500.0,0.00024657,2]
[313290006,1707095438216,-261.5654487,0.00024657,2]
[313290008,1707095438225,-500.0,0.00024657,2]
[313290011,1707095438234,-500.0,0.00024657,2]
[313290012,1707095438244,-500.0,0.00024657,2]
[313290014,1707095438253,-500.0,0.00024657,2]
[313290016,1707095438262,-500.0,0.00024657,2]
[313290018,1707095438271,-500.0,0.00024657,2]
[313290020,1707095438280,-500.0,0.00024657,2]
[313290022,1707095438290,-500.0,0.00024657,2]
[313290024,1707095438299,-500.0,0.00024657,2]
[313290025,1707095438308,-500.0,0.00024657,2]
[313290027,1707095438318,-500.0,0.00024657,2]
[313290029,1707095438327,-500.0,0.00024657,2]
[313290030,1707095438337,-1208.39,0.00024657,2]
[313290039,1707095438438,-180.27461566,0.00024657,2]
[313290041,1707095438453,-500.0,0.00024657,2]
[313290043,1707095438463,-500.0,0.00024657,2]
[313290044,1707095438472,-500.0,0.00024657,2]
[313290045,1707095438482,-500.0,0.00024657,2]
[313290046,1707095438491,-500.0,0.00024657,2]
[313290047,1707095438501,-500.0,0.00024657,2]
[313290049,1707095438510,-626.6242037,0.00024657,2]
[313290050,1707095438520,-500.0,0.00024657,2]
[313290051,1707095438530,-501.48964606,0.00024657,2]
[313290052,1707095438539,-508.35909412,0.00024657,2]
[313290053,1707095438548,-500.0,0.00024657,2]
[313290054,1707095438558,-500.0,0.00024657,2]
[313290055,1707095438567,-190.90635508,0.00024657,2]
[313290056,1707095438576,-500.0,0.00024657,2]
[313290057,1707095438586,-500.0,0.00024657,2]
[313290058,1707095438595,-500.0,0.00024657,2]
[313290059,1707095438605,-500.0,0.00024657,2]
[313290060,1707095438615,-500.0,0.00024657,2]
[313290061,1707095438625,-500.0,0.00024657,2]
[313290062,1707095438634,-500.0,0.00024657,2]
[313290063,1707095438644,-500.0,0.00024657,2]
[313290064,1707095438653,-500.0,0.00024657,2]
[313290065,1707095438663,-500.0,0.00024657,2]
[313290066,1707095438674,-500.0,0.00024657,2]
[313290067,1707095438683,-1004.47943329,0.00024657,5]
[313290068,1707095438692,-500.0,0.00024657,2]
[313290069,1707095438701,-500.0,0.00024657,2]
[313290070,1707095438710,-500.0,0.00024657,2]
[313290071,1707095438719,-500.0,0.00024657,2]
[313290072,1707095438728,-587.0,0.00024657,2]
[313290073,1707095438737,-500.0,0.00024657,2]
[313290074,1707095438747,-500.0,0.00024657,2]
[313290075,1707095438756,-500.0,0.00024657,2]
[313290076,1707095438765,-500.0,0.00024657,2]
[313290077,1707095438774,-500.0,0.00024657,2]
[313290078,1707095438784,-500.0,0.00024657,2]
[313290079,1707095438792,-500.0,0.00024657,2]
[313290080,1707095438802,-500.0,0.00024657,2]
[313290081,1707095438811,-500.0,0.00024657,2]
[313290082,1707095438821,-500.0,0.00024657,2]
[313290083,1707095438831,-500.0,0.00024657,2]
[313290084,1707095438840,-500.0,0.00024657,2]
[313290085,1707095438849,-500.0,0.00024657,2]
[313290086,1707095438859,-512.14,0.00024657,2]
[313290087,1707095438868,-500.0,0.00024657,2]
[313290088,1707095438877,-2695.03,0.00024657,2]
[313290089,1707095438886,-715.75,0.00024657,2]
[313290090,1707095438895,-500.0,0.00024657,2]
[313290091,1707095438904,-395.98984785,0.00024657,2]
[313290092,1707095438914,-500.0,0.00024657,2]
[313290093,1707095438924,-5254.81,0.00024657,2]
[313290094,1707095438933,-500.0,0.00024657,2]
[313290095,1707095438942,-1331.3,0.00024657,2]
[313290096,1707095438951,-1189.36,0.00024657,2]
[313290097,1707095438961,-1052.15,0.00024657,2]
[313290098,1707095438970,-500.0,0.00024657,2]
[313290099,1707095438979,-810.96,0.00024657,2]
[313290100,1707095438988,-500.0,0.00024657,2]
[313290101,1707095438996,-548.7,0.00024657,2]
[313290102,1707095439006,-1390.61,0.00024657,2]
[313290103,1707095439015,-1531.52,0.00024657,2]
[313290104,1707095439024,-654.39,0.00024657,2]
[313290105,1707095439033,-3488.3,0.00024657,2]
[313290106,1707095439041,-500.0,0.00024657,2]
[313290107,1707095439052,-615.51,0.00024657,2]
[313290108,1707095439061,-674.97,0.00024657,2]
[313290109,1707095439070,-750.73,0.00024657,2]
[313290110,1707095439080,-574.81,0.00024657,2]
[313290111,1707095439090,-3119.78,0.00024657,2]
[313290112,1707095439099,-1008.62,0.00024657,2]
[313290113,1707095439108,-557.51,0.00024657,2]
[313290114,1707095439117,-5117.37,0.00024657,2]
[313290115,1707095439126,-500.0,0.00024657,2]
[313290116,1707095439135,-681.97,0.00024657,2]
[313290117,1707095439144,-500.0,0.00024657,2]
[313290118,1707095439152,-500.0,0.00024657,2]
[313290119,1707095439162,-153.0,0.000249,2]
[313290120,1707095439172,-500.0,0.0002493,2]
[313290121,1707095439181,-500.0,0.0002493,2]
[313290122,1707095439191,-500.0,0.00024931,2]
[313290123,1707095439200,-500.0,0.00024931,2]
[313290124,1707095439210,-500.0,0.00024931,2]
[313290125,1707095439219,-500.0,0.00024931,2]
[313290126,1707095439228,-1208.39,0.00024931,2]
[313290127,1707095439238,-500.0,0.00024931,2]
[313290128,1707095439247,-587.0,0.00024931,2]
[313290129,1707095439257,-500.0,0.00024931,2]
[313290130,1707095439267,-500.0,0.00024931,2]
[313290131,1707095439276,-2695.03,0.00024931,2]
[313290132,1707095439285,-715.75,0.00024931,2]
[313290133,1707095439295,-341.41364696,0.00024931,2]
[313290134,1707095439305,-500.0,0.00024931,2]
[313290135,1707095439314,-5254.81,0.00024931,2]
[313290136,1707095439324,-1331.3,0.00024931,2]
[313290137,1707095439334,-1189.36,0.00024931,2]
[313290138,1707095439343,-1052.15,0.00024931,2]
[313290139,1707095439352,-500.0,0.00024931,2]
[313290140,1707095439361,-810.96,0.00024931,2]
[313290141,1707095439371,-500.0,0.00024931,2]
[313290142,1707095439380,-548.7,0.00024931,2]
[313290143,1707095439389,-1390.61,0.00024931,2]
[313290144,1707095439398,-1531.52,0.00024931,2]
[313290145,1707095439407,-654.39,0.00024931,2]
[313290146,1707095439416,-3488.3,0.00024931,2]
[313290147,1707095439426,-522.77418586,0.00024931,2]
[313290148,1707095439435,-615.51,0.00024931,2]
[313290149,1707095439444,-674.97,0.00024931,2]
[313290150,1707095439454,-750.73,0.00024931,2]
[313290151,1707095439463,-574.81,0.00024931,2]
[313290152,1707095439472,-3044.76994748,0.00024931,2]
[313293752,1707095945558,-500.0,0.00027,27]
[313293775,1707096632226,-3647.36751024,0.0002283,2]
[313293788,1707096638206,168.18,0.00028,120]
[313293791,1707096639972,-2202.09600066,0.0002283,2]
[313293792,1707096639982,-155.01085076,0.0002283,2]
[313293793,1707096639991,-947.38512437,0.00022831,2]
[313293794,1707096640000,-205.40872296,0.00023111,2]
[313293795,1707096640010,-1027.51152962,0.00023113,2]
[313293796,1707096640019,-1379.89874783,0.00023113,2]
[313293797,1707096640028,-500.0,0.00024657,2]
[313293798,1707096640037,-500.0,0.00024657,2]
[313293799,1707096640046,-2500.0,0.000247,4]
[313293800,1707096640055,-2500.0,0.000248,4]
[313293803,1707096640065,-2500.0,0.000249,4]
[313293806,1707096640074,-500.0,0.0002492,2]